bitfinex-derivatives/quotes_BTCF0:USTF0_20250902
["timestamp","ask_amount","ask_price","bid_price","bid_amount"]
[1756844353539,0.003,111330.0,111320.0,2.15991633]
[1756844353729,0.003,111330.0,111320.0,2.06949303]
[1756844354437,0.003,111330.0,111320.0,2.06957303]
[1756844355533,0.003,111330.0,111320.0,2.06861303]
[1756844359434,0.003,111330.0,111320.0,2.07088754]
[1756844359822,0.003,111330.0,111320.0,2.06884754]
[1756844360027,0.003,111330.0,111320.0,1.61120599]
[1756844360326,0.003,111330.0,111320.0,2.06884754]
[1756844360537,0.003,111330.0,111320.0,1.61120599]
[1756844360729,0.003,111330.0,111320.0,2.06884754]
[1756844362635,0.003,111330.0,111320.0,1.19192754]
[1756844363037,0.003,111330.0,111320.0,2.06776754]
[1756844363533,0.003,111330.0,111320.0,1.19192754]
[1756844363747,0.003,111330.0,111320.0,2.06748754]
[1756844363935,0.003,111330.0,111320.0,0.10428599]
[1756844364138,0.08958,111330.0,111320.0,1.31960599]
[1756844364329,0.003,111330.0,111320.0,1.31960599]
[1756844364641,0.003,111330.0,111320.0,1.86707084]
[1756844364836,0.003,111330.0,111320.0,1.31960599]
[1756844365041,0.003,111330.0,111320.0,1.77724754]
[1756844366938,0.003,111330.0,111320.0,2.57471239]
[1756844367139,0.003,111330.0,111320.0,2.63845889]
[1756844367643,0.003,111330.0,111320.0,2.63741889]
[1756844367944,0.003,111330.0,111320.0,2.17977734]
[1756844368240,0.003,111330.0,111320.0,1.30549734]
[1756844368445,0.003,111330.0,111320.0,2.63769889]
[1756844368746,0.003,111330.0,111320.0,1.72269579]
[1756844369039,0.003,111330.0,111320.0,2.63797889]
[1756844369341,0.003,111330.0,111320.0,1.76313889]
[1756844369544,0.003,111330.0,111320.0,2.63849889]
[1756844369932,0.003,111330.0,111320.0,1.76313889]
[1756844370137,0.003,111330.0,111320.0,1.30549734]
[1756844370337,0.003,111330.0,111320.0,2.18089734]
[1756844370940,0.003,111330.0,111320.0,2.18057734]
[1756844371845,0.003,111330.0,111320.0,1.30549734]
[1756844372046,0.003,111330.0,111320.0,2.18057734]
[1756844372437,0.003,111330.0,111320.0,1.30549734]
[1756844372643,0.003,111330.0,111320.0,2.17969734]
[1756844373743,0.003,111330.0,111320.0,1.92917734]
[1756844373947,0.003,111330.0,111320.0,1.05549734]
[1756844374154,0.003,111330.0,111320.0,1.92893734]
[1756844375445,0.003,111330.0,111320.0,2.38657889]
[1756844377041,0.003,111330.0,111320.0,1.92893734]
[1756844377544,0.003,111330.0,111320.0,1.92781704]
[1756844378334,0.003,111330.0,111320.0,1.92737704]
[1756844380650,0.003,111330.0,111320.0,1.86363054]
[1756844381046,0.003,111330.0,111320.0,2.32127209]
[1756844381853,0.003,111330.0,111320.0,1.86263054]
[1756844383145,0.003,111330.0,111320.0,1.92636612]
[1756844383352,0.003,111330.0,111320.0,1.86263054]
[1756844383545,0.003,111330.0,111320.0,2.13711131]
[1756844383743,0.43837432,111360.0,111320.0,2.10105131]
[1756844383942,0.03912,111350.0,111340.0,0.44836116]
[1756844384143,0.04806166,111350.0,111340.0,1.31820116]
[1756844384839,0.04806166,111350.0,111340.0,0.44836116]
[1756844384840,0.66412282,111350.0,111340.0,0.44836116]
[1756844385044,0.66412282,111350.0,111340.0,0.95166]
[1756844385045,0.30306166,111350.0,111340.0,0.95166]
[1756844385242,0.66912282,111350.0,111340.0,1.31772116]
[1756844385452,0.66912282,111350.0,111340.0,0.97263599]
[1756844385654,0.68134282,111350.0,111340.0,0.97263599]
[1756844385847,0.68134282,111350.0,111340.0,0.93696599]
[1756844386048,0.68134282,111350.0,111340.0,0.04411599]
[1756844386256,0.68134282,111350.0,111340.0,0.91495599]
[1756844386451,0.31528166,111350.0,111340.0,1.28101715]
[1756844386651,0.68134282,111350.0,111340.0,0.91495599]
[1756844386959,0.68134282,111350.0,111340.0,0.93844599]
[1756844387254,0.68334282,111350.0,111340.0,0.10327599]
[1756844387551,0.68334282,111350.0,111340.0,1.33993715]
[1756844387955,1.04940398,111350.0,111340.0,0.02097599]
[1756844388160,1.04940398,111350.0,111340.0,0.89121599]
[1756844388450,1.04940398,111350.0,111340.0,0.89077599]
[1756844388856,1.04940398,111350.0,111340.0,0.02097599]
[1756844389260,1.04940398,111350.0,111340.0,0.89069599]
[1756844390655,1.04940398,111350.0,111340.0,0.02097599]
[1756844390855,1.04940398,111350.0,111340.0,0.88985599]
[1756844391250,0.68334282,111350.0,111340.0,0.93648599]
[1756844391560,0.68334282,111350.0,111340.0,0.91299599]
[1756844391860,0.68334282,111350.0,111340.0,0.04411599]
[1756844392053,0.68334282,111350.0,111340.0,0.93596599]
[1756844392253,0.43334282,111350.0,111340.0,1.33769715]
[1756844392453,0.05506166,111350.0,111340.0,1.33769715]
[1756844392662,0.42112282,111350.0,111340.0,1.67769715]
[1756844393046,0.43334282,111350.0,111340.0,0.10327599]
[1756844393360,0.43334282,111350.0,111340.0,0.97147599]
[1756844394352,0.43334282,111350.0,111340.0,0.10327599]
[1756844394563,0.06728166,111350.0,111340.0,0.93608599]
[1756844394858,0.43334282,111350.0,111340.0,0.97175599]
[1756844395663,0.43334282,111350.0,111340.0,0.10327599]
[1756844395962,0.43334282,111350.0,111340.0,0.97123599]
[1756844396161,0.43334282,111350.0,111340.0,0.10327599]
[1756844396362,0.43334282,111350.0,111340.0,0.97091599]
[1756844396562,0.06728166,111350.0,111340.0,0.97091599]
[1756844396862,0.43334282,111350.0,111340.0,0.97091599]
[1756844397251,0.06728166,111350.0,111340.0,0.97091599]
[1756844397457,0.06728166,111350.0,111340.0,0.99080178]
[1756844397764,0.43334282,111350.0,111340.0,1.35686294]
[1756844397959,0.03550166,111350.0,111340.0,1.34080178]
[1756844398153,0.40156282,111350.0,111340.0,1.34080178]
[1756844398359,0.40156282,111350.0,111340.0,1.70686294]
[1756844398564,0.43334282,111350.0,111340.0,0.99268178]
[1756844398762,0.01594166,111350.0,111340.0,1.71874294]
[1756844398966,0.38200282,111350.0,111340.0,1.71874294]
[1756844399361,0.01594166,111350.0,111340.0,1.71874294]
[1756844399563,0.01594166,111350.0,111340.0,2.0848041]
[1756844399866,0.01594166,111350.0,111340.0,2.3348041]
[1756844401376,0.007,111350.0,111340.0,0.79689687]
[1756844401575,0.007,111350.0,111340.0,2.39905919]
[1756844402377,0.007,111350.0,111340.0,2.3353241]
[1756844402874,0.007,111350.0,111340.0,2.40816753]
[1756844403072,0.007,111350.0,111340.0,2.49797483]
[1756844403677,0.007,111350.0,111340.0,2.56170992]
[1756844404274,0.007,111350.0,111340.0,2.92777108]
[1756844404469,0.007,111350.0,111340.0,2.86403599]
[1756844404878,0.007,111350.0,111340.0,2.86375599]
[1756844405078,0.007,111350.0,111340.0,2.92749108]
[1756844405476,0.005,111350.0,111340.0,2.92749108]
[1756844405779,0.005,111350.0,111340.0,2.05873108]
[1756844405982,0.005,111350.0,111340.0,2.92821108]
[1756844406675,0.00896553,111370.0,111360.0,0.0823]
[1756844406880,1.87828116,111380.0,111360.0,1.99726847]
[1756844407075,1.90062201,111380.0,111370.0,0.44836116]
[1756844407279,1.93846317,111380.0,111370.0,0.44836116]
[1756844407583,1.91740116,111380.0,111370.0,0.44836116]
[1756844407778,1.91740116,111380.0,111370.0,1.31688116]
[1756844407979,1.91840116,111380.0,111370.0,1.67688116]
[1756844408180,1.92140116,111380.0,111370.0,1.67688116]
[1756844408780,1.92240116,111380.0,111370.0,1.67684116]
[1756844408985,1.92240116,111380.0,111370.0,1.31628116]
[1756844409182,1.92240116,111380.0,111370.0,1.64612116]
[1756844409583,1.92240116,111380.0,111370.0,0.77836116]
[1756844409771,1.92240116,111380.0,111370.0,0.0823]
[1756844409977,2.53846232,111380.0,111370.0,0.91411]
[1756844410179,2.53846232,111380.0,111370.0,0.94825]
[1756844410375,2.53846232,111380.0,111370.0,0.10174599]
[1756844410577,2.53846232,111380.0,111370.0,0.96910599]
[1756844410977,2.53846232,111380.0,111370.0,0.88829599]
[1756844411178,2.53846232,111380.0,111370.0,0.91186599]
[1756844411779,2.53846232,111380.0,111370.0,0.93630599]
[1756844411986,1.81538184,111380.0,111370.0,0.97020599]
[1756844412182,1.56538184,111380.0,111370.0,1.69626715]
[1756844412479,1.919223,111380.0,111370.0,1.69626715]
[1756844412686,1.51404184,111380.0,111370.0,1.69626715]
[1756844412874,1.892323,111380.0,111370.0,1.33020599]
[1756844413080,1.892323,111380.0,111370.0,1.69626715]
[1756844413481,2.181443,111380.0,111370.0,0.10344599]
[1756844413687,2.54750416,111380.0,111370.0,0.97084599]
[1756844414282,2.54750416,111380.0,111370.0,0.10344599]
[1756844414486,2.54750416,111380.0,111370.0,0.97076599]
[1756844414782,2.54750416,111380.0,111370.0,0.06930599]
[1756844415088,2.54750416,111380.0,111370.0,0.93634599]
[1756844415288,2.54750416,111380.0,111370.0,0.97048599]
[1756844416188,2.54750416,111380.0,111370.0,0.10344599]
[1756844416389,2.54750416,111380.0,111370.0,0.97032599]
[1756844416591,2.181443,111380.0,111370.0,0.97032599]
[1756844416791,2.181443,111380.0,111370.0,0.96952599]
[1756844416987,2.181443,111380.0,111370.0,1.33558715]
[1756844417287,2.181443,111380.0,111370.0,0.48950715]
[1756844417492,2.181443,111380.0,111370.0,1.69546715]
[1756844417796,2.181443,111380.0,111370.0,1.32928599]
[1756844418091,2.181443,111380.0,111370.0,1.32900599]
[1756844418891,1.931443,111380.0,111370.0,1.69506715]
[1756844419791,1.931443,111380.0,111370.0,1.69422715]
[1756844420791,1.56538184,111380.0,111370.0,0.10344599]
[1756844421092,2.29750416,111380.0,111370.0,0.77152599]
[1756844421282,2.29750416,111380.0,111370.0,0.10344599]
[1756844421485,1.93134005,111380.0,111370.0,0.93334599]
[1756844422191,1.93134005,111380.0,111370.0,0.96748599]
[1756844422492,1.93134005,111380.0,111370.0,0.10344599]
[1756844422693,1.93134005,111380.0,111370.0,0.96692599]
[1756844422995,1.93134005,111380.0,111370.0,0.93278599]
[1756844423194,1.95237557,111380.0,111370.0,0.93254599]
[1756844423688,1.95237557,111380.0,111370.0,0.96668599]
[1756844424193,1.95237557,111380.0,111370.0,1.31668599]
[1756844424493,1.95237557,111380.0,111370.0,0.45344599]
[1756844424690,2.20237557,111380.0,111370.0,0.88357599]
[1756844425194,2.20237557,111380.0,111370.0,0.90714599]
[1756844425392,2.20237557,111380.0,111370.0,0.93190599]
[1756844425894,2.20237557,111380.0,111370.0,0.90714599]
[1756844426094,2.20237557,111380.0,111370.0,0.04454599]
[1756844426283,2.20237557,111380.0,111370.0,0.88357599]
[1756844426481,2.20237557,111380.0,111370.0,0.02097599]
[1756844427095,2.20237557,111380.0,111370.0,0.63141599]
[1756844427293,2.20237557,111380.0,111370.0,0.02097599]
[1756844427594,2.20237557,111380.0,111370.0,0.88305599]
[1756844427790,1.83641736,111380.0,111370.0,0.02097599]
[1756844428097,2.20237557,111380.0,111370.0,0.02097599]
[1756844428499,2.20237557,111380.0,111360.0,0.04917615]
[1756844428500,3.05207557,111380.0,111360.0,0.02163152]
[1756844428694,0.36595821,111370.0,111360.0,0.02163152]
[1756844428889,0.38699373,111370.0,111360.0,0.02163152]
[1756844429595,0.38699373,111370.0,111360.0,0.10410152]
[1756844429596,0.02103552,111370.0,111360.0,0.10410152]
[1756844429794,0.02203552,111370.0,111360.0,0.83005973]
[1756844430097,0.02203552,111370.0,111360.0,1.08005973]
[1756844430299,0.02203552,111370.0,111360.0,0.71410152]
[1756844430799,0.02203552,111370.0,111360.0,0.73420466]
[1756844431000,0.02303552,111370.0,111360.0,1.10016287]
[1756844431589,0.02303552,111370.0,111360.0,1.19613886]
[1756844432587,0.002,111370.0,111360.0,1.19613886]
[1756844432999,0.002,111370.0,111360.0,1.69210065]
[1756844434490,0.002,111370.0,111360.0,2.05805886]
[1756844434691,0.002,111370.0,111360.0,2.42401707]
[1756844434891,0.002,111370.0,111360.0,2.48775216]
[1756844435101,0.002,111370.0,111360.0,2.12179395]
[1756844435402,0.002,111370.0,111360.0,2.57754346]
[1756844436190,0.002,111370.0,111360.0,1.62583216]
[1756844436501,0.002,111370.0,111360.0,1.71562346]
[1756844436802,0.002,111370.0,111360.0,2.57754346]
[1756844437705,0.002,111370.0,111360.0,2.48775216]
[1756844438002,0.002,111370.0,111360.0,2.51380837]
[1756844438402,0.002,111370.0,111360.0,2.42401707]
[1756844438903,0.002,111370.0,111360.0,2.51380837]
[1756844439405,0.002,111370.0,111360.0,2.5942326]
[1756844440605,0.002,111370.0,111360.0,2.5941526]
[1756844440806,0.002,111370.0,111360.0,2.52286307]
[1756844442203,0.002,111370.0,111360.0,2.6032873]
[1756844442407,0.002,111370.0,111360.0,2.52286307]
[1756844443207,0.002,111370.0,111360.0,2.58657418]
[1756844443508,0.002,111370.0,111360.0,2.58653418]
[1756844443710,0.002,111370.0,111360.0,2.52282307]
[1756844444303,0.002,111370.0,111360.0,2.58652936]
[1756844446108,0.002,111370.0,111360.0,2.52282307]
[1756844446310,0.002,111370.0,111360.0,2.50119155]
[1756844446807,0.002,111370.0,111360.0,2.58161578]
[1756844447396,0.0482313,111440.0,111360.0,2.58161578]
[1756844447611,0.36595821,111420.0,111410.0,0.08263]
[1756844447902,0.74684304,111420.0,111410.0,0.94435]
[1756844448408,0.74684304,111420.0,111410.0,0.81819684]
[1756844448409,0.39001484,111420.0,111410.0,0.81819684]
[1756844448710,0.00913001,111420.0,111410.0,1.67991684]
[1756844448913,0.008,111420.0,111410.0,1.67991684]
[1756844449104,0.258,111420.0,111410.0,0.81819684]
[1756844449305,0.258,111420.0,111410.0,1.31391863]
[1756844450204,0.258,111420.0,111410.0,1.40989462]
[1756844450508,0.263,111420.0,111410.0,1.05985462]
[1756844450704,0.62895821,111420.0,111410.0,0.19821462]
[1756844451110,0.63773501,111420.0,111410.0,1.00185462]
[1756844451311,0.63773501,111420.0,111410.0,0.19821462]
[1756844451512,0.63773501,111420.0,111410.0,1.05985462]
[1756844451703,0.63773501,111420.0,111410.0,0.19821462]
[1756844451899,0.63773501,111420.0,111410.0,0.98017462]
[1756844452705,0.63773501,111420.0,111410.0,0.19821462]
[1756844452911,0.63773501,111420.0,111410.0,1.02295462]
[1756844453307,0.63773501,111420.0,111410.0,0.19821462]
[1756844453610,0.63773501,111420.0,111410.0,1.05977462]
[1756844455512,0.63773501,111420.0,111410.0,0.19821462]
[1756844455703,0.63773501,111420.0,111410.0,0.16139462]
[1756844455905,0.63773501,111420.0,111410.0,0.92779462]
[1756844456210,0.63773501,111420.0,111410.0,0.16139462]
[1756844456415,0.2717768,111420.0,111410.0,1.40969462]
[1756844456614,0.63773501,111420.0,111410.0,1.40969462]
[1756844456812,0.2717768,111420.0,111410.0,1.40969462]
[1756844458731,0.0217768,111420.0,111410.0,1.77565283]
[1756844458931,0.0217768,111420.0,111410.0,1.40969462]
[1756844459329,0.0217768,111420.0,111410.0,1.77565283]
[1756844460232,0.0217768,111420.0,111410.0,0.91417283]
[1756844460432,0.0217768,111420.0,111410.0,1.40961462]
[1756844462028,0.0217768,111420.0,111410.0,1.77557283]
[1756844462423,0.0217768,111420.0,111410.0,0.54821462]
[1756844462730,0.0217768,111420.0,111410.0,1.40957462]
[1756844462938,0.0217768,111420.0,111410.0,1.77553283]
[1756844464833,0.0217768,111420.0,111410.0,1.77549283]
[1756844465023,0.0217768,111420.0,111410.0,0.19821462]
[1756844465224,0.63773501,111420.0,111410.0,0.17860599]
[1756844465436,1.00369322,111420.0,111410.0,0.14178599]
[1756844465624,1.02456061,111420.0,111410.0,0.93582599]
[1756844465933,0.6586024,111420.0,111410.0,0.93582599]
[1756844466334,1.02456061,111420.0,111410.0,0.95729599]
[1756844466535,0.6586024,111420.0,111410.0,0.09597599]
[1756844466735,1.02456061,111420.0,111410.0,0.95729599]
[1756844466937,1.02456061,111420.0,111410.0,0.09597599]
[1756844467140,1.02456061,111420.0,111410.0,0.95729599]
[1756844467335,1.02456061,111420.0,111410.0,0.09597599]
[1756844467537,1.02456061,111420.0,111410.0,0.98011599]
[1756844467740,1.02456061,111420.0,111410.0,1.00310599]
[1756844467936,0.6586024,111420.0,111410.0,1.00310599]
[1756844468634,1.02456061,111420.0,111410.0,1.03998599]
[1756844468836,0.6586024,111420.0,111410.0,1.03998599]
[1756844471144,1.02456061,111420.0,111410.0,1.03998599]
[1756844471639,1.02456061,111420.0,111410.0,1.00310599]
[1756844471841,1.02456061,111420.0,111410.0,1.03998599]
[1756844473346,1.02456061,111420.0,111410.0,0.17866599]
[1756844473644,1.02456061,111420.0,111410.0,1.03994599]
[1756844473846,1.02456061,111420.0,111410.0,1.00306599]
[1756844474048,1.02456061,111420.0,111410.0,0.14178599]
[1756844474341,1.02456061,111420.0,111410.0,0.09597599]
[1756844474543,2.31403191,111420.0,111410.0,0.09597599]
[1756844474741,2.31403191,111420.0,111410.0,0.093706]
[1756844475047,2.31418193,111420.0,111410.0,0.093706]
[1756844475448,1.21294193,111420.0,111410.0,0.118076]
[1756844477649,0.48102551,111420.0,111410.0,0.118076]
[1756844477843,1.21294193,111420.0,111410.0,0.093706]
[1756844478043,1.42294193,111420.0,111410.0,0.093706]
[1756844478239,2.01418193,111420.0,111410.0,0.093706]
[1756844478445,1.15294193,111420.0,111410.0,0.093706]
[1756844478639,1.15294193,111420.0,111410.0,0.271036]
[1756844478950,1.15294193,111420.0,111410.0,0.307916]
[1756844478951,0.4886024,111420.0,111410.0,0.307916]
[1756844479250,0.85456061,111420.0,111410.0,0.118076]
[1756844479443,0.85456061,111420.0,111410.0,0.093706]
[1756844479444,1.10456061,111420.0,111410.0,0.093706]
[1756844479644,1.35456061,111420.0,111410.0,0.093706]
[1756844479842,1.10456061,111420.0,111410.0,0.093706]
[1756844480044,1.96576061,111420.0,111410.0,0.093706]
[1756844480238,1.96576061,111420.0,111410.0,0.118076]
[1756844480239,1.10456061,111420.0,111410.0,0.118076]
[1756844480640,1.96576061,111420.0,111410.0,0.118076]
[1756844481051,1.10456061,111420.0,111410.0,0.118076]
[1756844481250,1.96576061,111420.0,111410.0,0.118076]
[1756844481453,1.10424961,111420.0,111410.0,0.307916]
[1756844481648,1.96544961,111420.0,111410.0,0.271036]
[1756844481841,1.10424961,111420.0,111410.0,0.248076]
[1756844482653,1.10424961,111420.0,111410.0,0.271036]
[1756844482950,1.96544961,111420.0,111410.0,0.307916]
[1756844483149,0.85424961,111420.0,111410.0,0.307916]
[1756844483847,0.85424961,111420.0,111410.0,0.271036]
[1756844484052,0.85424961,111420.0,111410.0,0.307916]
[1756844487047,0.85424961,111420.0,111410.0,0.141036]
[1756844487550,0.85424961,111420.0,111410.0,0.177916]
[1756844488756,0.12264419,111420.0,111410.0,0.177916]
[1756844488950,0.85424961,111420.0,111410.0,0.177916]
[1756844489252,0.85424961,111420.0,111410.0,0.797916]
[1756844489553,0.77424961,111420.0,111410.0,0.567916]
[1756844489754,0.77424961,111420.0,111410.0,0.427916]
[1756844490256,0.4084469,111420.0,111410.0,0.737916]
[1756844490447,0.77424961,111420.0,111410.0,0.737916]
[1756844490949,0.4084469,111420.0,111410.0,1.14371871]
[1756844491151,0.38757951,111420.0,111410.0,0.79371871]
[1756844491655,0.0217768,111420.0,111410.0,0.747916]
[1756844491856,0.38757951,111420.0,111410.0,1.11371871]
[1756844492052,0.38757951,111420.0,111410.0,0.747916]
[1756844492256,0.38757951,111420.0,111410.0,1.11371871]
[1756844492654,0.0217768,111420.0,111410.0,1.11371871]
[1756844492855,0.38757951,111420.0,111410.0,1.11371871]
[1756844495055,0.38757951,111420.0,111410.0,1.608876]
[1756844495257,0.38757951,111420.0,111410.0,1.97467871]
[1756844496157,0.38757951,111420.0,111410.0,1.11371871]
[1756844496455,0.38757951,111420.0,111410.0,1.97467871]
[1756844498559,0.0217768,111420.0,111410.0,1.97467871]
[1756844498766,0.38757951,111420.0,111410.0,1.97467871]
[1756844498956,0.0217768,111420.0,111410.0,1.97467871]
[1756844500655,0.0167768,111420.0,111410.0,1.97467871]
[1756844500854,0.0167768,111420.0,111410.0,1.97455871]
[1756844500855,0.0177768,111420.0,111410.0,1.97455871]
[1756844501157,0.0117768,111420.0,111410.0,1.97455871]
[1756844501762,0.0117768,111420.0,111410.0,1.11371871]
[1756844502058,0.0117768,111420.0,111410.0,1.97451871]
[1756844502756,0.0117768,111420.0,111410.0,1.608716]
[1756844503059,0.0117768,111420.0,111410.0,1.97451871]
[1756844503856,0.37757951,111420.0,111410.0,1.608676]
[1756844504056,0.37757951,111420.0,111410.0,1.97447871]
[1756844504855,0.0117768,111420.0,111410.0,1.97447871]
[1756844505352,0.0117768,111420.0,111410.0,1.608596]
[1756844505560,0.0117768,111420.0,111410.0,2.34020142]
[1756844506065,0.0117768,111420.0,111410.0,1.608596]
[1756844506249,0.0117768,111420.0,111410.0,1.97439871]
[1756844508359,0.003,111420.0,111410.0,2.34020142]
[1756844508952,0.003,111420.0,111410.0,1.97439871]
[1756844509767,0.003,111420.0,111410.0,1.608596]
[1756844509967,0.003,111420.0,111410.0,2.34020142]
[1756844510557,0.003,111420.0,111410.0,2.42995162]
[1756844511075,0.003,111420.0,111410.0,0.747916]
[1756844511262,0.003,111420.0,111410.0,2.34296142]
[1756844511462,0.003,111420.0,111410.0,1.47952142]
[1756844511763,0.003,111420.0,111410.0,4.08356142]
[1756844512366,0.003,111420.0,111410.0,3.21824142]
[1756844512566,0.003,111420.0,111410.0,4.08348142]
[1756844512768,0.003,111420.0,111410.0,2.486636]
[1756844512959,0.003,111420.0,111410.0,3.71739871]
[1756844513372,0.003,111420.0,111410.0,4.08320142]
[1756844513568,0.003,111420.0,111410.0,2.486636]
[1756844513771,0.36880271,111420.0,111410.0,2.236636]
[1756844513969,0.36880271,111420.0,111410.0,3.46759871]
[1756844514167,0.003,111420.0,111410.0,3.46759871]
[1756844514573,0.003,111420.0,111410.0,3.83340142]
[1756844515169,0.003,111420.0,111410.0,3.46759871]
[1756844515370,0.003,111420.0,111410.0,3.83340142]
[1756844516070,0.003,111420.0,111410.0,3.46827871]
[1756844516278,0.003,111420.0,111410.0,3.102476]
[1756844516576,0.003,111420.0,111410.0,3.46827871]
[1756844516773,0.003,111420.0,111410.0,3.102516]
[1756844517074,0.61880271,111420.0,111410.0,2.782476]
[1756844517276,0.98460542,111420.0,111410.0,2.782596]
[1756844517973,0.98460542,111420.0,111410.0,2.782516]
[1756844518480,0.61880271,111420.0,111410.0,3.14831871]
[1756844519167,0.36880271,111420.0,111410.0,3.14831871]
[1756844520278,0.003,111420.0,111410.0,2.782516]
[1756844520479,0.36880271,111420.0,111410.0,3.14831871]
[1756844520775,0.3896334,111420.0,111410.0,1.916636]
[1756844521177,1.00543611,111420.0,111410.0,2.782556]
[1756844521376,1.00543611,111420.0,111410.0,1.043956]
[1756844521575,1.00443611,111420.0,111410.0,0.118076]
[1756844521777,1.00243611,111420.0,111410.0,0.959746]
[1756844522077,1.00243611,111420.0,111410.0,1.006446]
[1756844522277,1.00243611,111420.0,111410.0,1.040596]
[1756844523470,1.00242982,111420.0,111410.0,1.040596]
[1756844525077,0.63662711,111420.0,111410.0,1.040596]
[1756844525277,1.00242982,111420.0,111410.0,1.040596]
[1756844525875,1.00242982,111420.0,111410.0,1.040156]
[1756844526981,0.2708244,111420.0,111410.0,1.040156]
[1756844527179,1.00242982,111420.0,111410.0,1.040076]
[1756844527383,1.00242982,111420.0,111410.0,1.005926]
[1756844527684,0.2708244,111420.0,111410.0,1.040076]
[1756844527875,1.00242982,111420.0,111410.0,1.040076]
[1756844529579,0.2708244,111420.0,111410.0,1.040076]
[1756844529786,1.88227791,111430.0,111410.0,1.95172871]
[1756844530079,1.53727862,111430.0,111420.0,0.08493]
[1756844530986,1.53727862,111430.0,111420.0,0.95077]
[1756844531180,1.90508133,111430.0,111420.0,0.95077]
[1756844531379,2.27088404,111430.0,111420.0,0.08493]
[1756844531572,2.27288404,111430.0,111420.0,0.95049]
[1756844531985,2.27288404,111430.0,111420.0,0.08493]
[1756844531986,2.27388404,111430.0,111420.0,0.08493]
[1756844532286,2.27388404,111430.0,111420.0,0.95045]
[1756844532886,2.27388404,111430.0,111420.0,0.04843]
[1756844533077,2.52388404,111430.0,111410.0,1.006536]
[1756844533383,0.73160542,111420.0,111410.0,1.043036]
[1756844533586,0.75240884,111420.0,111410.0,1.043036]
[1756844533777,0.75240884,111420.0,111410.0,1.006536]
[1756844534285,0.75240884,111420.0,111410.0,0.093706]
[1756844534488,1.36821155,111420.0,111410.0,0.093706]
[1756844534985,1.00340884,111420.0,111410.0,0.093706]
[1756844535387,1.00340884,111420.0,111410.0,0.141616]
[1756844535683,1.00440884,111420.0,111410.0,0.141616]
[1756844536285,1.35440884,111420.0,111410.0,0.141616]
[1756844538573,1.72021155,111420.0,111410.0,0.093706]
[1756844538984,1.72021155,111420.0,111410.0,0.0701766]
[1756844539282,1.72021155,111420.0,111410.0,0.04778819]
[1756844539483,1.72021155,111420.0,111400.0,0.02168]
[1756844539484,1.72177446,111420.0,111400.0,0.02168]
[1756844539684,0.73160542,111400.0,111390.0,0.65632]
[1756844539889,1.10240884,111400.0,111380.0,0.94845]
[1756844540185,0.36580271,111390.0,111380.0,0.94845]
[1756844540386,0.43765116,111390.0,111380.0,1.06845]
[1756844540987,0.80345387,111390.0,111380.0,0.08441]
[1756844541180,0.80345387,111390.0,111380.0,0.94801]
[1756844541382,0.80345387,111390.0,111380.0,0.02494]
[1756844541579,0.80383129,111390.0,111380.0,0.04991]
[1756844542182,0.80383129,111390.0,111380.0,0.05191]
[1756844542687,0.80383129,111390.0,111380.0,0.18438599]
[1756844542886,0.80383129,111390.0,111380.0,0.18238599]
[1756844543189,0.82561974,111390.0,111380.0,0.09797599]
[1756844543392,0.80483129,111390.0,111380.0,0.14588599]
[1756844543689,0.43883987,111390.0,111380.0,0.18238599]
[1756844543889,0.80483129,111390.0,111380.0,0.18238599]
[1756844544091,0.80583129,111390.0,111380.0,0.18038599]
[1756844544677,0.80583129,111390.0,111380.0,0.09597599]
[1756844544678,1.11583129,111390.0,111380.0,0.09597599]
[1756844544885,1.3866134,111390.0,111380.0,0.09597599]
[1756844546787,1.48349602,111390.0,111380.0,0.09597599]
[1756844547694,1.48349602,111390.0,111360.0,0.0768894]
[1756844547695,0.02667,111370.0,111360.0,0.0768894]
[1756844547893,0.39266142,111370.0,111360.0,0.0768894]
[1756844548193,0.55266142,111370.0,111360.0,0.04791]
[1756844548591,0.18667,111370.0,111360.0,0.04791]
[1756844548890,0.18667,111370.0,111360.0,0.04891]
[1756844548891,0.55266142,111370.0,111360.0,0.04891]
[1756844549291,0.18667,111370.0,111360.0,0.04891]
[1756844549489,0.55266142,111370.0,111360.0,0.04891]
[1756844549698,0.55266142,111370.0,111360.0,0.08541]
[1756844550497,0.16711,111370.0,111360.0,0.10652977]
[1756844550693,0.16711,111370.0,111360.0,1.21856977]
[1756844550694,0.16,111370.0,111360.0,1.21856977]
[1756844550896,0.16,111370.0,111360.0,1.68053718]
[1756844551196,0.16,111370.0,111360.0,1.31454576]
[1756844551609,0.16,111370.0,111360.0,0.45250576]
[1756844551809,0.16,111370.0,111360.0,1.31458576]
[1756844553508,0.16,111370.0,111360.0,0.45250576]
[1756844553704,0.16,111370.0,111360.0,1.31390576]
[1756844553904,0.55007142,111370.0,111360.0,0.20250576]
[1756844554104,0.55759142,111370.0,111360.0,1.06390576]
[1756844554405,0.55759142,111370.0,111360.0,0.20250576]
[1756844554805,0.1916,111370.0,111360.0,0.20250576]
[1756844555013,0.16,111370.0,111360.0,0.20250576]
[1756844556311,0.18408,111370.0,111360.0,1.06398576]
[1756844556509,0.1916,111370.0,111360.0,1.06398576]
[1756844556814,0.55759142,111370.0,111360.0,1.06398576]
[1756844557019,0.17956,111370.0,111360.0,1.06398576]
[1756844557209,0.16,111370.0,111360.0,1.06398576]
[1756844557502,0.52599142,111370.0,111360.0,1.06398576]
[1756844557917,0.16,111370.0,111360.0,1.06398576]
[1756844558405,0.55759142,111370.0,111360.0,1.06430576]
[1756844559018,0.55007142,111370.0,111360.0,1.06430576]
[1756844559219,0.55759142,111370.0,111360.0,1.06430576]
[1756844559811,0.52599142,111370.0,111360.0,1.06430576]
[1756844560218,0.53351142,111370.0,111360.0,1.06430576]
[1756844561220,0.55759142,111370.0,111360.0,0.20250576]
[1756844561518,0.1916,111370.0,111360.0,1.06398576]
[1756844561719,0.55759142,111370.0,111360.0,0.20250576]
[1756844562218,0.55759142,111370.0,111360.0,0.16600576]
[1756844562419,0.55759142,111370.0,111360.0,0.14588599]
[1756844562420,0.72759142,111370.0,111360.0,0.14588599]
[1756844562615,0.72759142,111370.0,111360.0,0.18073599]
[1756844562816,0.72759142,111370.0,111360.0,0.14588599]
[1756844563022,0.72759142,111370.0,111360.0,0.09797599]
[1756844563223,0.7482659,111370.0,111360.0,0.14380599]
[1756844563716,0.7482659,111370.0,111360.0,0.17865599]
[1756844564312,0.7482659,111370.0,111360.0,0.14380599]
[1756844564518,1.36425732,111370.0,111360.0,0.09797599]